bitfinex/quotes_BTCUSD_20241025
["timestamp","ask_amount","ask_price","bid_price","bid_amount"]
[1729872113999,0.147951,67590.0,67586.0,0.22199858]
[1729872114202,0.147951,67590.0,67587.0,0.15050381]
[1729872114405,0.443839,67592.0,67587.0,0.15050381]
[1729872114601,0.147953,67589.0,67587.0,0.15050381]
[1729872114836,0.00165,67595.0,67587.0,0.15050381]
[1729872114837,0.295893,67592.0,67587.0,0.15050381]
[1729872115049,0.00165,67595.0,67581.0,0.44451226]
[1729872115249,0.147946,67592.0,67582.0,0.15050381]
[1729872115457,0.00165,67595.0,67582.0,0.15050381]
[1729872115668,0.147958,67587.0,67582.0,0.15050381]
[1729872116081,0.295888,67593.0,67582.0,0.15050381]
[1729872116290,0.147942,67594.0,67582.0,0.29847081]
[1729872116513,0.00165,67595.0,67582.0,0.15050381]
[1729872116991,0.00165,67595.0,67582.0,0.37250239]
[1729872117230,0.00165,67595.0,67576.0,0.14798]
[1729872117231,0.295914,67588.0,67576.0,0.25521226]
[1729872117463,0.147966,67583.0,67582.0,0.24499858]
[1729872117691,0.295914,67588.0,67582.0,0.023]
[1729872117922,0.295914,67588.0,67581.0,0.25521226]
[1729872118131,0.295906,67589.0,67582.0,0.023]
[1729872118356,0.14796,67586.0,67582.0,0.023]
[1729872118586,0.147965,67584.0,67582.0,0.023]
[1729872119284,0.147961,67586.0,67582.0,0.023]
[1729872119498,0.295897,67591.0,67582.0,0.023]
[1729872119717,0.00416647,67593.0,67586.0,0.25521226]
[1729872119944,0.147949,67591.0,67586.0,0.25521226]
[1729872120157,0.14795,67591.0,67587.0,0.22199858]
[1729872120377,0.00165,67595.0,67587.0,0.17350381]
[1729872120628,0.00165,67595.0,67594.0,0.25521226]
[1729872120868,0.149589,67595.0,67594.0,0.25521226]
[1729872122054,0.00581647,67595.0,67582.0,0.25521226]
[1729872122298,0.147966,67583.0,67582.0,0.27821226]
[1729872122520,0.147974,67579.0,67578.0,0.22199858]
[1729872122773,0.00416647,67586.0,67572.0,0.33321226]
[1729872123018,0.00165,67595.0,67572.0,0.33321226]
[1729872123019,0.147988,67573.0,67572.0,0.078]
[1729872123266,0.148007,67564.0,67563.0,0.30329858]
[1729872123498,0.148007,67564.0,67563.0,0.22199858]
[1729872123725,0.00416647,67564.0,67552.0,0.33651226]
[1729872124164,0.148025,67556.0,67552.0,0.33651226]
[1729872124373,0.148025,67556.0,67555.0,0.000825]
[1729872125474,0.15219147,67556.0,67555.0,0.000825]
[1729872126527,0.296038,67559.0,67555.0,0.000825]
[1729872126744,0.296041,67558.0,67555.0,0.000825]
[1729872126946,0.148025,67556.0,67555.0,0.000825]
[1729872127607,0.15589198,67556.0,67555.0,0.000825]
[1729872130118,0.40639579,67556.0,67555.0,0.000825]
[1729872130317,0.00416647,67545.0,67538.0,0.22199858]
[1729872130447,0.148045,67547.0,67538.0,0.22199858]
[1729872130657,0.148054,67543.0,67542.0,0.25521226]
[1729872131806,0.15221747,67545.0,67542.0,0.25521226]
[1729872131996,0.148053,67543.0,67542.0,0.25521226]
[1729872132635,0.444156,67544.0,67538.0,0.000825]
[1729872132851,0.296084,67549.0,67538.0,0.000825]
[1729872132852,0.00416647,67546.0,67538.0,0.000825]
[1729872133088,0.296097,67546.0,67542.0,0.25521226]
[1729872133523,0.30025247,67548.0,67542.0,0.25521226]
[1729872133747,0.00416647,67546.0,67542.0,0.25521226]
[1729872134000,0.00416647,67553.0,67544.0,0.22199858]
[1729872134215,0.148038,67550.0,67549.0,0.25521226]
[1729872134656,0.148046,67547.0,67538.0,0.148889]
[1729872134868,0.296073,67551.0,67543.0,0.22199858]
[1729872134869,0.148037,67551.0,67543.0,0.22199858]
[1729872135079,0.00416647,67553.0,67542.0,0.148056]
[1729872135377,0.25521226,67569.0,67540.0,0.296119]
[1729872135378,0.00370084,67559.0,67552.0,0.25521226]
[1729872135585,0.51800458,67567.0,67554.0,0.0751]
[1729872135586,0.22199858,67560.0,67554.0,0.0751]
[1729872135797,0.148004,67566.0,67557.0,0.148021]
[1729872136050,0.148004,67566.0,67555.0,0.15050381]
[1729872136051,0.22616505,67567.0,67555.0,0.15050381]
[1729872136248,0.00416647,67567.0,67555.0,0.15050381]
[1729872136462,0.14802,67559.0,67555.0,0.15050381]
[1729872136726,0.148008,67564.0,67558.0,0.22199858]
[1729872136985,0.00416647,67568.0,67559.0,0.00296007]
[1729872137196,0.148011,67563.0,67559.0,0.00296007]
[1729872137405,0.296002,67567.0,67557.0,0.25521226]
[1729872137614,0.00416647,67568.0,67557.0,0.25521226]
[1729872137615,0.148009,67564.0,67557.0,0.25521226]
[1729872137828,0.148013,67562.0,67555.0,0.15050381]
[1729872138045,0.148009,67564.0,67555.0,0.29853081]
[1729872138266,0.296011,67565.0,67555.0,0.29853081]
[1729872138479,0.148007,67565.0,67555.0,0.29853081]
[1729872138703,0.296006,67566.0,67557.0,0.148022]
[1729872138919,0.00416647,67574.0,67558.0,0.37546242]
[1729872139136,0.148004,67566.0,67559.0,0.00295987]
[1729872139344,0.148013,67562.0,67559.0,0.15050381]
[1729872139780,0.00416647,67571.0,67554.0,0.0751]
[1729872139781,0.148027,67555.0,67554.0,0.0751]
[1729872139994,0.00416647,67562.0,67551.0,0.22199858]
[1729872140226,0.0037004,67566.0,67545.0,0.0782]
[1729872140227,0.00416647,67556.0,67545.0,0.0782]
[1729872140458,0.00416647,67556.0,67550.0,0.22199858]
[1729872140459,0.148037,67551.0,67550.0,0.22199858]
[1729872140682,0.00416647,67556.0,67545.0,0.0782]
[1729872140915,0.00416647,67556.0,67538.0,0.000825]
[1729872140916,0.00416647,67552.0,67538.0,0.000825]
[1729872141125,0.148054,67543.0,67539.0,0.15050381]
[1729872141342,0.2961,67545.0,67539.0,0.15050381]
[1729872141553,0.296089,67548.0,67539.0,0.15050381]
[1729872141996,0.296076,67550.0,67539.0,0.15050381]
[1729872142225,0.148042,67549.0,67539.0,0.15050381]
[1729872142452,0.296086,67548.0,67540.0,0.00296074]
[1729872142666,0.00416647,67550.0,67538.0,0.000825]
[1729872142888,0.148059,67541.0,67538.0,0.000825]
[1729872143133,0.296099,67545.0,67538.0,0.000825]
[1729872143339,0.297099,67545.0,67538.0,0.000825]
[1729872143545,0.148056,67542.0,67538.0,0.000825]
[1729872143954,0.148054,67543.0,67538.0,0.000825]
[1729872144166,0.001,67541.0,67538.0,0.000825]
[1729872144383,0.001,67541.0,67539.0,0.000825]
[1729872144596,0.148057,67542.0,67539.0,0.000825]
[1729872144825,0.296103,67544.0,67539.0,0.000825]
[1729872145050,0.001,67542.0,67539.0,0.000825]
[1729872145476,0.001,67542.0,67539.0,0.0037859]
[1729872145903,0.001,67542.0,67541.0,0.148058]
[1729872146122,0.001,67542.0,67541.0,0.57973471]
[1729872146338,0.22199858,67553.0,67541.0,0.57973471]
[1729872146339,0.37003158,67553.0,67545.0,0.148048]
[1729872146552,0.22199858,67553.0,67546.0,0.15050381]
[1729872146756,0.296046,67557.0,67546.0,0.15050381]
[1729872146757,0.22199858,67556.0,67546.0,0.15050381]
[1729872147031,0.148031,67554.0,67546.0,0.15050381]
[1729872147241,0.00416647,67559.0,67547.0,0.00296045]
[1729872147462,0.148023,67557.0,67548.0,0.148041]
[1729872147670,0.001,67553.0,67548.0,0.15050381]
[1729872148098,0.14803,67554.0,67549.0,0.00296044]
[1729872148518,0.296042,67558.0,67548.0,0.29854481]
[1729872148797,0.148032,67553.0,67548.0,0.15050381]
[1729872149238,0.148029,67554.0,67548.0,0.15050381]
[1729872149665,0.148034,67552.0,67548.0,0.15050381]
[1729872150104,0.14803,67554.0,67548.0,0.15050381]
[1729872150321,0.001,67553.0,67548.0,0.15050381]
[1729872150534,0.148035,67552.0,67548.0,0.15050381]
[1729872150753,0.296059,67554.0,67548.0,0.15050381]
[1729872150969,0.148037,67551.0,67548.0,0.15050381]
[1729872151180,0.296046,67557.0,67548.0,0.15050381]
[1729872151181,0.001,67552.0,67548.0,0.15050381]
[1729872151840,0.001,67552.0,67543.0,0.023]
[1729872152109,0.296072,67551.0,67544.0,0.15050381]
[1729872152305,0.148038,67550.0,67544.0,0.15050381]
[1729872152521,0.001,67552.0,67544.0,0.15050381]
[1729872152522,0.149034,67552.0,67544.0,0.29855481]
[1729872152753,0.148036,67551.0,67544.0,0.29855481]
[1729872152961,0.148041,67549.0,67544.0,0.15050381]
[1729872153172,0.148034,67553.0,67545.0,0.148049]
[1729872153432,0.001,67554.0,67544.0,0.15050381]
[1729872153896,0.30021647,67557.0,67544.0,0.15050381]
[1729872154128,0.148036,67551.0,67544.0,0.15050381]
[1729872154370,0.001,67549.0,67545.0,0.148049]
[1729872154629,0.001,67549.0,67546.0,0.37250239]
[1729872154840,0.296025,67562.0,67546.0,0.37250239]
[1729872154841,0.148025,67556.0,67548.0,0.148042]
[1729872155054,0.148021,67558.0,67549.0,0.15100042]
[1729872155271,0.296038,67559.0,67548.0,0.15050381]
[1729872155272,0.296055,67555.0,67548.0,0.15050381]
[1729872155484,0.148032,67553.0,67548.0,0.15050381]
[1729872155916,0.148036,67552.0,67548.0,0.15050381]
[1729872156796,0.148029,67555.0,67548.0,0.15050381]
[1729872157007,0.148023,67557.0,67548.0,0.29854481]
[1729872157239,0.001,67552.0,67548.0,0.15050381]
[1729872157677,0.148026,67556.0,67549.0,0.00296045]
[1729872157900,0.14803,67554.0,67548.0,0.15050381]
[1729872158123,0.001,67555.0,67549.0,0.00296044]
[1729872158339,0.001,67555.0,67548.0,0.15050381]
[1729872158592,0.296063,67553.0,67544.0,0.000825]
[1729872158819,0.148041,67549.0,67546.0,0.22199858]
[1729872159035,0.148036,67551.0,67546.0,0.22199858]
[1729872159249,0.296063,67553.0,67544.0,0.000825]
[1729872159479,0.00516647,67555.0,67544.0,0.000825]
[1729872159734,0.001,67555.0,67554.0,0.40324126]
[1729872159927,0.001,67555.0,67554.0,0.85154507]
[1729872160401,0.29596,67577.0,67564.0,0.148007]
[1729872160632,0.22199858,67568.0,67564.0,0.30147035]
[1729872160865,0.30011047,67581.0,67564.0,0.30147035]
[1729872160866,0.295953,67579.0,67564.0,0.30147035]
[1729872161082,0.147982,67576.0,67564.0,0.30147035]
[1729872161300,0.295944,67581.0,67564.0,0.32530388]
[1729872161523,0.36997558,67578.0,67564.0,0.32234434]
[1729872161735,0.22199858,67578.0,67564.0,0.32234434]
[1729872161960,0.22199858,67578.0,67564.0,0.39754434]
[1729872162233,0.00165,67583.0,67564.0,0.61954292]
[1729872162417,0.00165,67583.0,67576.0,0.40342929]
[1729872162418,0.22199858,67577.0,67576.0,0.40342929]
[1729872162632,0.22199858,67577.0,67576.0,0.5539331]
[1729872162847,0.00165,67583.0,67576.0,0.4059521]
[1729872163058,0.00165,67583.0,67581.0,0.14797]
[1729872163276,0.00165,67583.0,67582.0,0.1534619]
[1729872163495,0.00165,67583.0,67582.0,0.3837299]
[1729872163709,0.00165,67583.0,67582.0,0.38077181]
[1729872163948,0.00165,67583.0,67582.0,0.58567181]
[1729872164395,0.00165,67583.0,67582.0,0.80850392]
[1729872164618,0.00165,67583.0,67582.0,0.43770381]
[1729872164872,0.00165,67583.0,67582.0,0.58567181]
[1729872165320,0.00265,67583.0,67582.0,0.58567181]
[1729872165540,0.00265,67583.0,67582.0,0.8411201]
[1729872165753,0.00165,67583.0,67582.0,0.8411201]
[1729872166265,0.00265,67583.0,67582.0,0.8411201]
[1729872167142,0.00265,67583.0,67582.0,0.6931521]
[1729872167582,0.00165,67583.0,67582.0,0.6931521]
[1729872167869,0.00265,67583.0,67582.0,0.8411201]
[1729872168327,0.00165,67583.0,67582.0,0.8411201]
[1729872168823,0.00265,67583.0,67582.0,0.8411201]
[1729872169329,0.00165,67583.0,67582.0,0.8411201]
[1729872169579,0.00265,67583.0,67582.0,0.8411201]
[1729872169805,0.00265,67583.0,67582.0,0.8431201]
[1729872170032,0.00265,67583.0,67582.0,0.8411201]
[1729872170271,0.00265,67583.0,67582.0,0.84395363]
[1729872170507,0.00265,67583.0,67582.0,0.58850534]
[1729872170730,0.00165,67583.0,67582.0,0.58850534]
[1729872171198,0.00265,67583.0,67582.0,0.58850534]
[1729872171672,0.00165,67583.0,67582.0,0.58850534]
[1729872171901,0.00265,67583.0,67582.0,0.58850534]
[1729872172133,0.00265,67583.0,67582.0,0.58650534]
[1729872172361,0.00265,67583.0,67582.0,0.58850534]
[1729872172651,0.00265,67583.0,67582.0,0.58650534]
[1729872173139,0.00265,67583.0,67574.0,0.1]
[1729872173397,0.00265,67583.0,67576.0,0.22199858]
[1729872173624,0.00265,67583.0,67579.0,0.25544829]
[1729872173849,0.00265,67583.0,67580.0,0.15050381]
[1729872174075,0.00165,67583.0,67580.0,0.15050381]
[1729872174562,0.00265,67583.0,67580.0,0.15050381]
[1729872174789,0.298582,67583.0,67574.0,0.023]
[1729872175006,0.147973,67580.0,67576.0,0.023]
[1729872175234,0.00165,67583.0,67577.0,0.15050381]
[1729872175472,0.00165,67583.0,67568.0,0.22199858]
[1729872175473,0.147986,67574.0,67568.0,0.22199858]
[1729872175684,0.147986,67574.0,67569.0,0.15050381]
[1729872175902,0.147983,67575.0,67569.0,0.15050381]
[1729872176119,0.147978,67578.0,67569.0,0.15050381]
[1729872176348,0.14798,67577.0,67569.0,0.15050381]
[1729872176556,0.147984,67575.0,67569.0,0.15050381]
[1729872176781,0.147975,67579.0,67570.0,0.023]
[1729872176997,0.00265,67583.0,67570.0,0.023]
[1729872176998,0.00165,67583.0,67572.0,0.023]
[1729872177223,0.295936,67582.0,67573.0,0.15050381]
[1729872177439,0.295936,67582.0,67565.0,0.148003]
[1729872177440,0.296008,67566.0,67562.0,0.22199858]
[1729872177868,0.55139229,67581.0,67554.0,0.22199858]
[1729872177869,0.148026,67556.0,67554.0,0.22199858]
[1729872178082,0.25544829,67575.0,67554.0,0.22199858]
[1729872178083,0.148021,67558.0,67554.0,0.22199858]
[1729872178295,0.296024,67562.0,67554.0,0.22199858]
[1729872178509,0.295998,67568.0,67556.0,0.25544829]
[1729872178724,0.148004,67566.0,67557.0,0.15346373]
[1729872178931,0.295998,67568.0,67557.0,0.15346373]
[1729872179142,0.148005,67566.0,67557.0,0.15346373]
[1729872179360,0.295979,67573.0,67562.0,0.023]
[1729872179571,0.147981,67576.0,67564.0,0.023]
[1729872179781,0.147993,67571.0,67565.0,0.1534634]
[1729872179997,0.00416647,67580.0,67570.0,0.22199858]
[1729872180221,0.00416647,67580.0,67566.0,0.27844829]
[1729872180222,0.22199858,67582.0,67574.0,0.023]
[1729872180438,0.00165,67583.0,67575.0,0.15346277]
[1729872180673,0.00165,67583.0,67579.0,0.147974]
[1729872180875,0.00165,67583.0,67580.0,0.15346211]
[1729872181357,0.00165,67583.0,67582.0,0.27844829]
[1729872181565,0.00165,67583.0,67582.0,0.5769201]
[1729872181776,0.00165,67583.0,67582.0,0.4289521]
[1729872181983,0.00265,67583.0,67582.0,0.6532201]
[1729872182878,0.00265,67583.0,67582.0,0.65405363]
[1729872183077,0.00165,67583.0,67582.0,0.65605363]
[1729872183518,0.00265,67583.0,67582.0,0.66105363]
[1729872184048,0.00165,67583.0,67582.0,0.66605363]
[1729872184276,0.00265,67583.0,67582.0,0.76605363]
[1729872184542,0.00165,67595.0,67594.0,0.17377553]
[1729872184787,0.00165,67595.0,67594.0,0.58435195]
[1729872185733,0.00165,67595.0,67594.0,0.97415195]
[1729872186824,0.00265,67595.0,67594.0,0.97415195]
[1729872187272,0.00165,67595.0,67594.0,0.97415195]
[1729872187498,0.00265,67595.0,67594.0,0.97415195]
[1729872187759,0.00265,67595.0,67594.0,0.98006895]
[1729872187984,0.00265,67595.0,67594.0,0.97415195]
[1729872188414,0.00265,67595.0,67594.0,0.98006895]
[1729872188861,0.00265,67595.0,67594.0,0.97544463]
[1729872189926,0.00165,67595.0,67594.0,0.97544463]
[1729872190139,0.00265,67595.0,67594.0,0.97544463]
[1729872190811,0.00165,67595.0,67594.0,0.97544463]
[1729872191029,0.00265,67595.0,67594.0,0.97544463]
[1729872192317,0.00265,67595.0,67594.0,0.96952763]
[1729872192530,0.00265,67595.0,67594.0,0.97544363]
[1729872194738,0.00265,67595.0,67594.0,0.68824581]
[1729872194950,0.00265,67595.0,67594.0,0.24283734]
[1729872195168,0.00265,67595.0,67594.0,0.23283734]
[1729872195438,0.00265,67595.0,67594.0,0.15050381]
[1729872196138,0.00265,67595.0,67580.0,0.00083353]
[1729872196139,0.00265,67595.0,67585.0,0.22199858]
[1729872196402,0.30006747,67590.0,67578.0,0.22199858]
[1729872196718,0.00165,67595.0,67578.0,0.22199858]
[1729872196719,0.147974,67579.0,67578.0,0.22199858]
[1729872196910,0.15214047,67579.0,67578.0,0.22199858]
[1729872197168,0.147992,67571.0,67570.0,0.22199858]
[1729872197676,0.148003,67566.0,67555.0,0.0769]
[1729872197902,0.01439664,67595.0,67573.0,0.295974]
[1729872198115,0.01439664,67595.0,67594.0,0.147942]
[1729872198116,0.00165,67595.0,67594.0,0.147942]
[1729872198328,0.15206547,67614.0,67594.0,0.25840335]
[1729872198556,0.00416647,67614.0,67596.0,0.002]
[1729872198789,0.00416647,67619.0,67599.0,0.295862]
[1729872199000,0.00416647,67624.0,67608.0,0.65880758]
[1729872199243,0.00416647,67624.0,67608.0,0.83231139]
[1729872199458,0.15204347,67624.0,67608.0,0.83231139]
[1729872199962,0.00416647,67624.0,67608.0,0.83231139]
[1729872200212,0.295734,67629.0,67608.0,0.83231139]
[1729872200213,0.00416647,67627.0,67608.0,0.83231139]
[1729872200437,0.00416647,67628.0,67608.0,0.83231139]
[1729872200648,0.00416647,67628.0,67608.0,0.4289521]
[1729872200649,0.00416647,67619.0,67608.0,0.4289521]
[1729872201079,0.15205347,67619.0,67608.0,0.4289521]
[1729872201295,0.00416647,67619.0,67608.0,0.4289521]
[1729872201517,0.00265,67609.0,67608.0,0.4289521]
[1729872201734,0.00265,67609.0,67608.0,0.5768631]
[1729872201942,0.00265,67609.0,67608.0,0.4289521]
[1729872202158,0.00265,67609.0,67608.0,0.5768631]
[1729872202366,0.00265,67609.0,67608.0,0.83231139]
[1729872202582,0.00265,67609.0,67608.0,0.5768631]
[1729872202798,0.00165,67609.0,67608.0,0.5768631]
[1729872203262,0.00265,67609.0,67608.0,0.4059521]
[1729872203471,0.00265,67609.0,67608.0,0.25544829]
[1729872203685,0.00165,67609.0,67608.0,0.25544829]
[1729872204103,0.00265,67609.0,67608.0,0.25544829]
[1729872204588,0.00165,67609.0,67608.0,0.25544829]
[1729872205421,0.00165,67609.0,67608.0,0.4059521]
[1729872205635,0.00165,67609.0,67608.0,0.83231139]
[1729872205860,0.00265,67609.0,67608.0,0.5768631]
[1729872206400,0.00165,67609.0,67608.0,0.5768631]
[1729872206621,0.00165,67609.0,67608.0,0.5538631]
[1729872206844,0.00265,67609.0,67608.0,0.5538631]
[1729872208098,0.00265,67609.0,67608.0,0.25544829]
[1729872209579,0.00165,67609.0,67608.0,0.25544829]
[1729872209792,0.00165,67609.0,67603.0,0.22199858]
[1729872210009,0.00165,67609.0,67607.0,0.147912]
[1729872210010,0.00265,67609.0,67607.0,0.147912]
[1729872210435,0.00165,67609.0,67607.0,0.147912]
[1729872210697,0.00165,67609.0,67608.0,0.147911]
[1729872210957,0.00265,67609.0,67608.0,0.32436996]
[1729872211192,0.00265,67609.0,67608.0,0.32224834]
[1729872211405,0.00265,67609.0,67608.0,0.33424834]
[1729872211627,0.00265,67609.0,67608.0,0.43424834]
[1729872212032,0.00265,67609.0,67608.0,0.68969663]
[1729872212285,0.00165,67631.0,67620.0,0.002]
[1729872212508,0.00165,67631.0,67630.0,0.147863]
[1729872213164,0.00165,67631.0,67630.0,0.54831753]
[1729872213384,0.00165,67631.0,67630.0,0.32136681]
[1729872213843,0.00165,67631.0,67630.0,0.65419892]
[1729872214072,0.00165,67631.0,67630.0,0.65619892]
[1729872214286,0.00165,67631.0,67630.0,0.87204863]
[1729872214726,0.001676,67651.0,67630.0,0.87204863]
[1729872214727,0.001676,67651.0,67632.0,0.26069253]
[1729872214946,0.001676,67651.0,67641.0,0.17367253]
[1729872215169,0.001676,67651.0,67641.0,0.33712496]
[1729872215411,0.001676,67651.0,67641.0,0.48394597]
[1729872215642,0.25491931,67650.0,67641.0,0.32134281]
[1729872216136,0.25491931,67650.0,67634.0,0.107]
[1729872216137,0.00584247,67642.0,67631.0,0.147859]
[1729872216392,0.147851,67636.0,67634.0,0.22199858]
[1729872216680,0.001676,67642.0,67619.0,0.147887]
[1729872216681,0.147869,67628.0,67619.0,0.147887]
[1729872216906,0.147869,67628.0,67610.0,0.22399858]
[1729872216907,0.147872,67626.0,67617.0,0.147891]
[1729872217139,0.25491931,67627.0,67618.0,0.51777558]
[1729872217376,0.00416647,67628.0,67618.0,0.51777558]
[1729872217610,0.00416647,67628.0,67621.0,0.147881]
[1729872217848,0.15203547,67628.0,67621.0,0.15050381]
[1729872218076,0.15203547,67628.0,67621.0,0.29838681]
[1729872218340,0.15203547,67628.0,67621.0,0.15050381]
[1729872218578,0.147871,67627.0,67621.0,0.15050381]
[1729872219067,0.15203547,67628.0,67621.0,0.15050381]
[1729872219313,0.00416647,67628.0,67621.0,0.15050381]
[1729872219533,0.15203447,67628.0,67621.0,0.15050381]
[1729872219756,0.15203447,67628.0,67621.0,0.29838581]
[1729872220475,0.00416647,67632.0,67625.0,0.22199858]
[1729872220704,0.15202547,67632.0,67626.0,0.147871]
[1729872220949,0.147862,67631.0,67625.0,0.29837781]
[1729872221485,0.001646,67633.0,67618.0,0.51777558]
[1729872221486,0.00416647,67630.0,67618.0,0.51777558]
[1729872221710,0.147872,67626.0,67625.0,0.22199858]
[1729872221967,0.147897,67615.0,67608.0,0.005823]
[1729872222193,0.147893,67616.0,67611.0,0.15050381]
[1729872222478,0.295787,67616.0,67611.0,0.15050381]
[1729872222747,0.295786,67617.0,67608.0,0.000823]
[1729872222748,0.147909,67609.0,67608.0,0.000823]
[1729872223009,0.147909,67609.0,67608.0,0.15132681]
[1729872223246,0.147909,67609.0,67608.0,0.000823]
[1729872225926,0.10786468,67609.0,67594.0,0.22199858]
[1729872226185,0.54347552,67595.0,67594.0,0.22199858]
[1729872227381,0.147954,67589.0,67587.0,0.22199858]
[1729872228302,0.147957,67587.0,67580.0,0.22199858]
[1729872228531,0.147964,67584.0,67582.0,0.023]
[1729872228742,0.147961,67586.0,67583.0,0.15050381]
[1729872229402,0.295904,67590.0,67583.0,0.15050381]
[1729872229616,0.15210547,67595.0,67594.0,0.000823]
[1729872231318,0.147939,67595.0,67594.0,0.000823]
[1729872232190,0.147935,67598.0,67594.0,0.15132681]
[1729872232408,0.295853,67601.0,67595.0,0.15050381]
[1729872232619,0.147937,67596.0,67595.0,0.15050381]
[1729872233498,0.295853,67601.0,67595.0,0.15050381]
[1729872233707,0.295853,67601.0,67595.0,0.1534604]
[1729872233918,0.295857,67600.0,67595.0,0.1534604]
[1729872234131,0.147936,67597.0,67595.0,0.1534604]
[1729872234343,0.147936,67597.0,67595.0,0.15050381]
[1729872234555,0.147937,67596.0,67595.0,0.15050381]
[1729872235652,0.147937,67596.0,67594.0,0.000823]
[1729872235653,0.147939,67595.0,67594.0,0.000823]
[1729872239230,0.44797447,67597.0,67594.0,0.000823]
[1729872239463,0.147939,67595.0,67594.0,0.000823]
[1729872239937,0.15210547,67595.0,67594.0,0.000823]
[1729872240867,0.15580397,67595.0,67594.0,0.000823]
[1729872241823,0.15580415,67595.0,67594.0,0.000823]
[1729872242596,0.30004247,67596.0,67594.0,0.000823]
[1729872242815,0.147939,67595.0,67594.0,0.000823]
[1729872243820,0.15210547,67595.0,67594.0,0.000823]
[1729872244018,0.40757068,67581.0,67580.0,0.22199858]
[1729872244497,0.40757068,67581.0,67572.0,0.22199858]
[1729872244498,0.15215447,67573.0,67572.0,0.22199858]
[1729872244761,0.40758868,67573.0,67572.0,0.22199858]
[1729872245003,0.148001,67567.0,67566.0,0.000824]
[1729872245443,0.40784287,67567.0,67566.0,0.000824]
[1729872247224,0.15216747,67567.0,67566.0,0.000824]
[1729872248313,0.4115429,67567.0,67566.0,0.000824]
[1729872248539,0.40784287,67567.0,67566.0,0.000824]
[1729872249740,0.67334668,67567.0,67566.0,0.000824]
[1729872249976,0.75414668,67567.0,67566.0,0.000824]
[1729872250466,0.25716947,67566.0,67565.0,0.00042517]
[1729872250693,0.41137407,67566.0,67565.0,0.00042517]
[1729872250929,0.40767328,67566.0,67565.0,0.00042517]
[1729872251412,0.41767328,67566.0,67565.0,0.00042517]
[1729872259194,0.25216947,67566.0,67565.0,0.00042517]
[1729872259441,0.25587003,67566.0,67565.0,0.00042517]
[1729872261106,0.25216947,67566.0,67565.0,0.00042517]
[1729872261326,0.15216947,67566.0,67565.0,0.00042517]
[1729872262046,0.40784487,67566.0,67565.0,0.00042517]
[1729872263464,0.15216947,67566.0,67565.0,0.00042517]
[1729872263697,0.41154491,67566.0,67565.0,0.00042517]
[1729872263924,0.41154491,67566.0,67554.0,0.22199858]
[1729872263925,0.296014,67565.0,67554.0,0.22495861]
[1729872264152,0.296014,67565.0,67561.0,0.22199858]
[1729872264153,0.148012,67562.0,67561.0,0.22199858]
[1729872264395,0.148012,67562.0,67555.0,0.15050381]
[1729872264396,0.14801,67563.0,67556.0,0.00296017]
[1729872264624,0.00416647,67564.0,67557.0,0.15050381]
[1729872264846,0.296014,67565.0,67557.0,0.15050381]
[1729872264847,0.148007,67565.0,67558.0,0.15098011]
[1729872265077,0.00416647,67564.0,67559.0,0.15050381]
[1729872265306,0.00416647,67567.0,67560.0,0.00295995]
[1729872265604,0.00416647,67570.0,67561.0,0.37250239]
[1729872265816,0.00416647,67576.0,67563.0,0.29602]
[1729872266033,0.147984,67575.0,67569.0,0.147996]
[1729872266253,0.00416647,67583.0,67571.0,0.2198]
[1729872266470,0.00416647,67587.0,67573.0,0.023]
[1729872266697,0.00416647,67589.0,67575.0,0.22199858]
[1729872266911,0.295904,67590.0,67571.0,0.1968]
[1729872266912,0.00416647,67583.0,67576.0,0.23270381]
[1729872267135,0.295902,67590.0,67576.0,0.23566206]
[1729872267136,0.14797,67582.0,67576.0,0.23566206]
[1729872267375,0.00416647,67589.0,67579.0,0.22199858]
[1729872267614,0.00416647,67589.0,67577.0,0.295957]
[1729872267615,0.147955,67588.0,67580.0,0.44940506]
[1729872267832,0.147955,67588.0,67581.0,0.00295822]
[1729872268140,0.00416647,67590.0,67582.0,0.15050381]
[1729872268341,0.00416647,67594.0,67583.0,0.00295809]
[1729872268552,0.00416647,67596.0,67585.0,0.14796]
[1729872268765,0.00416647,67596.0,67586.0,0.15050381]
[1729872269010,0.147949,67591.0,67586.0,0.15050381]
[1729872269280,0.00416647,67596.0,67586.0,0.15050381]
[1729872269281,0.147957,67587.0,67586.0,0.15050381]
[1729872269496,0.147961,67585.0,67584.0,0.22199858]
[1729872269725,0.147961,67585.0,67584.0,0.15050381]
[1729872269942,0.295943,67581.0,67576.0,0.0822]
[1729872270187,0.00416647,67584.0,67579.0,0.22199858]
[1729872270188,0.147973,67580.0,67579.0,0.22199858]
[1729872270414,0.147973,67580.0,67576.0,0.0822]
[1729872270415,0.147979,67577.0,67576.0,0.0822]
[1729872270897,0.147986,67574.0,67572.0,0.22199858]
[1729872271133,0.147984,67575.0,67573.0,0.15050381]
[1729872271355,0.00416647,67569.0,67561.0,0.22199858]
[1729872271566,0.15216247,67569.0,67568.0,0.22199858]
[1729872271782,0.148001,67567.0,67562.0,0.14801]
[1729872272026,0.00416647,67566.0,67563.0,0.148009]
[1729872272458,0.00416647,67566.0,67561.0,0.22199858]
[1729872272686,0.00416647,67566.0,67562.0,0.14801]
[1729872272914,0.00416647,67569.0,67565.0,0.148004]
[1729872273139,0.00416647,67569.0,67562.0,0.15346381]
[1729872273353,0.2556754,67568.0,67562.0,0.15050381]
[1729872273573,0.148017,67560.0,67556.0,0.082]
[1729872273786,0.148027,67555.0,67554.0,0.22199858]
[1729872273995,0.00416647,67560.0,67554.0,0.37250239]
[1729872274414,0.296043,67558.0,67554.0,0.37250239]
[1729872274672,0.00416647,67560.0,67548.0,0.000825]
[1729872274882,0.00416647,67551.0,67548.0,0.22282358]
[1729872275776,0.00416647,67551.0,67548.0,0.000825]
[1729872275981,0.14803,67554.0,67548.0,0.000825]
[1729872276176,0.14803,67554.0,67548.0,0.148867]
[1729872276380,0.15219447,67555.0,67549.0,0.30150344]
[1729872276495,0.148033,67553.0,67549.0,0.15050381]
[1729872277523,0.00416647,67549.0,67548.0,0.000825]
[1729872277735,0.15220647,67549.0,67548.0,0.000825]
[1729872278160,0.1559075,67549.0,67548.0,0.000825]
[1729872278365,0.41169265,67549.0,67548.0,0.000825]
[1729872278583,0.40799162,67549.0,67548.0,0.000825]